bitfinex/quotes_SOLUSD_20240725
["timestamp","ask_amount","ask_price","bid_price","bid_amount"]
[1721905825445,1.48159355,168.79,168.69,20.0]
[1721905825955,46.48159355,168.79,168.69,20.0]
[1721905828452,389.2,168.78,168.69,20.0]
[1721905828748,1.48173671,168.77,168.69,20.0]
[1721905829455,389.2,168.78,168.69,20.0]
[1721905829456,1.48173869,168.76,168.69,20.0]
[1721905830440,1.48174705,168.77,168.69,20.0]
[1721905830641,45.0,168.77,168.69,20.0]
[1721905830955,45.0,168.77,168.65,15.5557]
[1721905831138,50.9252,168.77,168.65,15.5557]
[1721905831345,21.2502,168.76,168.65,15.5557]
[1721905831544,46.48221919,168.75,168.65,15.5557]
[1721905832655,46.48221919,168.75,168.66,20.0]
[1721905834362,389.2,168.74,168.66,20.0]
[1721905834668,46.48225159,168.73,168.66,20.0]
[1721905835361,389.2,168.74,168.66,20.0]
[1721905835542,1.48225085,168.73,168.66,20.0]
[1721905835741,46.48225085,168.73,168.66,20.0]
[1721905837761,46.48225085,168.73,168.62,20.0]
[1721905839162,45.0,168.73,168.62,20.0]
[1721905839462,389.2,168.72,168.62,20.0]
[1721905839645,389.2,168.71,168.62,20.0]
[1721905840458,389.2,168.71,168.61,42.845]
[1721905840974,389.2,168.71,168.61,15.825]
[1721905841847,389.2,168.71,168.62,20.0]
[1721905842047,389.2,168.71,168.62,47.02]
[1721905842258,389.2,168.71,168.63,45.0]
[1721905842556,389.2,168.71,168.64,20.0]
[1721905843143,6.0606,168.74,168.63,20.0]
[1721905843343,1.48201201,168.73,168.63,20.0]
[1721905844150,389.2,168.75,168.7,13.51]
[1721905844353,28.8346,168.76,168.7,13.51]
[1721905844557,13.51,168.75,168.7,13.51]
[1721905844764,30.31642738,168.76,168.7,13.51]
[1721905846655,30.31642738,168.76,168.71,13.51]
[1721905847350,16.80642738,168.76,168.71,13.51]
[1721905847551,30.31642738,168.76,168.71,13.51]
[1721905847749,1.48182738,168.76,168.71,13.51]
[1721905847950,13.51,168.77,168.72,13.51]
[1721905849569,1.48164833,168.76,168.71,13.51]
[1721905850862,14.99164833,168.76,168.7,13.51]
[1721905851163,1.48185842,168.75,168.7,13.51]
[1721905852148,390.68185842,168.75,168.7,13.51]
[1721905854081,389.2,168.75,168.7,13.51]
[1721905854281,389.2,168.75,168.71,13.51]
[1721905855390,389.2,168.75,168.72,13.51]
[1721905856261,389.2,168.75,168.68,15.5108]
[1721905856476,389.2,168.75,168.71,13.51]
[1721905858075,13.51,168.77,168.71,13.51]
[1721905858761,14.99180814,168.77,168.71,13.51]
[1721905858960,389.2,168.78,168.71,13.51]
[1721905859271,389.2,168.78,168.74,13.51]
[1721905859674,389.2,168.78,168.73,13.51]
[1721905860373,389.2,168.78,168.74,13.51]
[1721905861172,389.2,168.78,168.73,13.51]
[1721905861374,389.2,168.78,168.68,15.5108]
[1721905861578,1.48170344,168.77,168.73,13.51]
[1721905861769,389.2,168.78,168.73,13.51]
[1721905863973,1.48157983,168.77,168.73,13.51]
[1721905864163,390.68157983,168.77,168.73,13.51]
[1721905864363,389.2,168.77,168.73,13.51]
[1721905865080,389.2,168.77,168.68,15.5108]
[1721905865081,389.2,168.77,168.72,13.51]
[1721905865470,389.2,168.77,168.73,13.51]
[1721905866279,389.2,168.77,168.74,13.51]
[1721905869469,389.2,168.77,168.68,15.5108]
[1721905869679,389.2,168.77,168.73,13.51]
[1721905870072,389.2,168.78,168.74,13.51]
[1721905870478,389.2,168.78,168.73,13.51]
[1721905870678,1.48166874,168.77,168.73,13.51]
[1721905871288,389.2,168.78,168.73,13.51]
[1721905871692,1.4816687,168.77,168.73,13.51]
[1721905872270,389.2,168.78,168.73,13.51]
[1721905873169,1.48169057,168.77,168.73,13.51]
[1721905873473,1.48171257,168.77,168.73,13.51]
[1721905875981,1.48171655,168.76,168.73,13.51]
[1721905876289,389.2,168.77,168.73,13.51]
[1721905876701,13.51,168.74,168.65,2.34768377]
[1721905876903,13.51,168.74,168.58,7.06255829]
[1721905876904,13.51,168.69,168.63,13.51]
[1721905877187,1.48249807,168.68,168.63,13.51]
[1721905877391,1.48252115,168.67,168.63,13.51]
[1721905878587,1.48251938,168.72,168.66,13.51]
[1721905878767,14.99251938,168.72,168.66,13.51]
[1721905878970,13.51,168.72,168.66,13.51]
[1721905879190,1.48226429,168.71,168.66,13.51]
[1721905879692,1.48226429,168.71,168.67,13.51]
[1721905879886,1.482134,168.73,168.6,1.1857072]
[1721905880087,13.51,168.72,168.67,13.51]
[1721905880283,14.992134,168.73,168.67,13.51]
[1721905880873,14.992134,168.73,168.6,1.18567108]
[1721905881078,13.51,168.73,168.6,21.18567108]
[1721905881291,13.51,168.73,168.67,13.51]
[1721905883578,1.48205239,168.73,168.67,13.51]
[1721905883778,402.71,168.74,168.68,13.51]
[1721905884004,13.51,168.73,168.67,13.51]
[1721905884500,14.992056,168.73,168.67,13.51]
[1721905884795,22.8823,168.72,168.67,13.51]
[1721905884993,16.2756,168.72,168.68,13.51]
[1721905885294,1.48211456,168.73,168.69,13.51]
[1721905885679,1.4820122,168.73,168.69,13.51]
[1721905888193,1.4820122,168.73,168.68,13.51]
[1721905890477,1.4820122,168.73,168.69,13.51]
[1721905890679,1.4820122,168.73,168.68,13.51]
[1721905890885,389.2,168.75,168.69,13.51]
[1721905891091,1.48189166,168.74,168.7,13.51]
[1721905891297,1.48188818,168.73,168.7,13.51]
[1721905891501,1.48186867,168.75,168.7,13.51]
[1721905891702,14.99186867,168.75,168.69,13.51]
[1721905892115,1.48186867,168.75,168.7,13.51]
[1721905894900,1.48186867,168.75,168.71,13.51]
[1721905895108,1.48186867,168.75,168.72,13.51]
[1721905895306,1.48173883,168.77,168.72,13.51]
[1721905895500,1.48173883,168.77,168.65,16.2271]
[1721905895704,1.48173755,168.76,168.71,13.51]
[1721905895907,14.99173755,168.76,168.71,13.51]
[1721905896818,1.48173755,168.76,168.71,13.51]
[1721905897198,14.99173755,168.76,168.7,13.51]
[1721905898095,1.48173755,168.76,168.71,13.51]
[1721905903611,14.99173755,168.76,168.7,13.51]
[1721905906422,13.51,168.71,168.64,2.34599948]
[1721905906606,13.51,168.69,168.64,13.51]
[1721905906931,13.51,168.7,168.64,13.51]
[1721905907307,1.48229699,168.73,168.65,13.51]
[1721905907530,13.51,168.71,168.65,13.51]
[1721905907708,14.99222293,168.71,168.65,13.51]
[1721905908624,1.48222401,168.7,168.65,13.51]
[1721905908998,1.48222401,168.7,168.66,13.51]
[1721905910020,1.48222401,168.7,168.61,17.59367133]
[1721905910205,14.99222401,168.7,168.64,13.51]
[1721905910406,13.51,168.7,168.64,13.51]
[1721905911020,1.48224873,168.69,168.66,13.51]
[1721905911221,13.51,168.72,168.67,13.51]
[1721905911822,13.51,168.72,168.66,13.51]
[1721905914515,14.99218536,168.72,168.62,20.0]
[1721905914722,402.71,168.71,168.65,13.51]
[1721905915431,1.48231785,168.7,168.65,13.51]
[1721905916235,1.48231785,168.7,168.66,13.51]
[1721905916616,1.48231785,168.7,168.65,13.51]
[1721905917314,1.48231785,168.7,168.62,20.0]
[1721905917514,1.48231785,168.7,168.65,13.51]
[1721905920232,1.48231785,168.7,168.62,20.0]
[1721905920541,1.48231785,168.7,168.65,13.51]
[1721905923034,1.48231785,168.7,168.66,13.51]
[1721905923343,1.48211304,168.72,168.67,13.51]
[1721905925530,14.99211304,168.72,168.66,13.51]
[1721905926743,13.51,168.71,168.66,13.51]
[1721905927445,1.48221253,168.7,168.66,13.51]
[1721905928441,13.51,168.72,168.66,13.51]
[1721905928748,1.48218688,168.71,168.66,13.51]
[1721905928931,1.48218938,168.7,168.66,13.51]
[1721905929444,1.48218903,168.71,168.66,13.51]
[1721905929832,1.48220566,168.7,168.66,13.51]
[1721905931064,1.4822055,168.72,168.66,13.51]
[1721905931343,14.9922055,168.72,168.66,13.51]
[1721905932441,72.6826,168.69,168.61,2.36107133]
[1721905932650,1.48279166,168.68,168.58,5.938]
[1721905932944,1.48280426,168.67,168.61,13.51]
[1721905933145,14.99280426,168.67,168.61,13.51]
[1721905933524,14.99280426,168.67,168.62,13.51]
[1721905933735,1.48280426,168.67,168.62,13.51]
[1721905933927,28.1997,168.69,168.65,13.51]
[1721905933928,22.2717,168.69,168.65,13.51]
[1721905934840,28.1997,168.69,168.58,1.18587522]
[1721905935146,13.51,168.68,168.62,13.51]
[1721905935341,14.99259163,168.68,168.62,13.51]
[1721905935647,13.51,168.68,168.62,13.51]
[1721905936831,22.2717,168.69,168.63,13.51]
[1721905937030,22.2717,168.69,168.64,13.51]
[1721905937631,6.6444,168.69,168.64,13.51]
[1721905938433,13.51,168.7,168.64,13.51]
[1721905939554,13.51,168.7,168.65,13.51]
[1721905939933,1.48225431,168.72,168.66,13.51]
[1721905940134,1.48225431,168.72,168.67,13.51]
[1721905940342,14.99225431,168.72,168.66,13.51]
[1721905941050,1.48225431,168.72,168.67,13.51]
[1721905941532,14.99225431,168.72,168.66,13.51]
[1721905942247,1.48225431,168.72,168.66,13.51]
[1721905942552,14.99225431,168.72,168.66,13.51]
[1721905942929,1.48225431,168.72,168.68,13.51]
[1721905943129,1.48225431,168.72,168.64,54.04]
[1721905943130,1.48202452,168.73,168.69,13.51]
[1721905944341,1.48202452,168.73,168.68,13.51]
[1721905944550,1.48198651,168.72,168.64,54.04]
[1721905944854,1.48198651,168.72,168.68,13.51]
[1721905945352,13.51,168.73,168.68,13.51]
[1721905945648,1.48201805,168.72,168.68,13.51]
[1721905946553,1.48201624,168.73,168.68,13.51]
[1721905948038,1.48201624,168.73,168.69,13.51]
[1721905950235,1.48201624,168.73,168.65,20.0]
[1721905950236,1.48198179,168.74,168.71,13.51]
[1721905951240,1.48198179,168.74,168.7,13.51]
[1721905951646,1.48196967,168.73,168.66,15.6381]
[1721905951852,13.51,168.72,168.64,2.41498759]
[1721905952043,1.48212364,168.71,168.67,13.51]
[1721905952242,1.48212383,168.7,168.67,13.51]
[1721905952837,1.48211941,168.72,168.68,13.51]
[1721905953441,1.48211676,168.73,168.68,13.51]
[1721905953759,1.48211676,168.73,168.69,13.51]
[1721905954338,1.48211676,168.73,168.62,18.79716097]
[1721905954649,1.48211676,168.73,168.69,13.51]
[1721905954853,1.48198204,168.75,168.69,13.51]
[1721905955075,13.51,168.74,168.69,13.51]
[1721905956761,14.99198204,168.75,168.69,13.51]
[1721905958475,1.48198204,168.75,168.7,13.51]
[1721905958650,13.51,168.75,168.7,13.51]
[1721905959044,402.71,168.76,168.7,13.51]
[1721905959374,13.51,168.76,168.7,13.51]
[1721905959580,14.99196729,168.76,168.7,13.51]
[1721905960744,13.51,168.75,168.7,13.51]
[1721905963678,14.99196729,168.76,168.71,13.51]
[1721905963878,13.51,168.76,168.71,13.51]
[1721905965180,402.71,168.76,168.71,13.51]
[1721905965766,402.71,168.76,168.7,13.51]
[1721905970470,13.51,168.75,168.7,13.51]
[1721905970667,402.71,168.76,168.7,13.51]
[1721905973769,389.2,168.76,168.7,13.51]
[1721905973984,402.71,168.76,168.7,13.51]
[1721905976570,1.48195545,168.75,168.71,13.51]
[1721905976774,389.2,168.76,168.72,13.51]
[1721905977368,389.2,168.76,168.71,13.51]
[1721905978289,402.71,168.76,168.64,54.04]
[1721905978487,402.71,168.76,168.65,20.0]
[1721905978668,402.71,168.76,168.7,13.51]
[1721905979896,389.2,168.76,168.71,13.51]
[1721905982187,389.2,168.76,168.72,13.51]
[1721905982575,389.2,168.76,168.73,13.51]
[1721905983382,389.2,168.76,168.72,13.51]
[1721905983582,389.2,168.76,168.65,20.0]
[1721905983794,389.2,168.76,168.72,13.51]
[1721905985177,389.2,168.76,168.75,13.51]
[1721905985376,21.9401,168.89,168.76,16.0493]
[1721905985588,295.72,168.95,168.88,13.51]
[1721905985589,21.9401,168.93,168.88,13.51]
[1721905985892,21.9401,168.93,168.8,75.22430709]
[1721905986085,389.2,168.95,168.81,78.72281217]
[1721905986391,389.2,168.95,168.93,13.51]
[1721905986592,0.1,168.97,168.94,13.51]
[1721905986794,0.1,168.97,168.95,13.51]
[1721905987476,0.1,168.97,168.96,13.51]
[1721905987993,0.1,168.97,168.95,13.51]
[1721905989494,0.1,168.97,168.94,13.51]
[1721905991201,13.51,168.95,168.9,13.51]
[1721905991394,14.99019159,168.94,168.89,13.51]
[1721905991582,14.99019159,168.94,168.9,20.0]
[1721905991789,58.51,168.93,168.88,13.51]
[1721905992090,13.51,168.95,168.9,13.51]
[1721905992393,14.990191,168.94,168.89,13.51]
[1721905992588,13.51,168.92,168.87,13.51]
[1721905992975,1.480369,168.91,168.84,6.147]
[1721905993180,1.480369,168.91,168.87,13.51]
[1721905993376,1.480369,168.91,168.88,20.0]
[1721905994278,13.51,168.92,168.88,20.0]
[1721905994478,13.51,168.93,168.88,33.51]
[1721905994776,1.48036887,168.95,168.88,33.51]
[1721905995000,13.51,168.94,168.89,13.51]
[1721905995179,13.51,168.94,168.88,20.0]
[1721905995379,14.99021738,168.95,168.89,13.51]
[1721905995731,14.2935796,169.04,168.91,15.3235]
[1721905995877,14.2935796,169.04,168.99,13.51]
[1721905995878,0.7835796,169.04,168.99,13.51]
[1721905996077,0.7835796,169.04,169.03,5.9161]
[1721905996274,14.2935796,169.04,169.03,5.9161]
[1721905996510,0.7835796,169.04,169.03,5.9161]
[1721905996806,0.7835796,169.04,169.03,19.4261]
[1721905997097,0.7835796,169.04,169.03,39.4261]
[1721905998279,0.7835796,169.04,169.03,25.9161]
[1721906002887,0.7835796,169.04,169.03,5.9161]
[1721906005888,0.7835796,169.04,168.9,26.91]
[1721906006089,0.61767068,169.03,169.0,5.9168]
[1721906006489,0.61767068,169.03,169.01,5.9167]
[1721906006698,434.9835796,169.04,169.02,5.9164]
[1721906006906,434.9835796,169.04,168.9,30.5100623]
[1721906007102,0.61767068,169.03,169.01,5.9167]
[1721906007504,434.9835796,169.04,169.01,5.9167]
[1721906007901,434.9835796,169.04,168.9,30.51005335]
[1721906008095,45.7835796,169.04,169.02,5.9163]
[1721906008496,0.7835796,169.04,169.03,5.9161]
[1721906009892,1.40125028,169.04,168.9,29.3264417]
[1721906010095,46.40125028,169.04,168.91,20.0]
[1721906010712,46.40125028,169.04,169.0,5.9171]
[1721906011385,46.40125028,169.04,169.01,5.9167]
[1721906012512,45.7835796,169.04,169.01,5.9167]
[1721906013811,0.61767068,169.03,169.0,5.9171]
[1721906014016,45.7835796,169.04,169.01,5.9167]
[1721906016704,46.40125028,169.04,169.01,5.9167]
[1721906016908,45.7835796,169.04,169.02,5.9164]
[1721906017103,45.7835796,169.04,169.03,5.9161]
[1721906017104,0.7835796,169.04,169.03,5.9161]
[1721906021422,0.7835796,169.04,169.02,5.9163]
[1721906021904,0.7835796,169.04,169.03,5.9161]
[1721906022303,0.7835796,169.04,168.95,16.5992]
[1721906022509,0.7835796,169.04,169.03,5.9161]
[1721906023018,0.7835796,169.04,169.02,5.9164]
[1721906024135,0.7835796,169.04,169.03,5.9161]
[1721906027644,0.7835796,169.04,169.02,5.9163]
[1721906028527,0.7835796,169.04,169.03,5.9161]
[1721906030353,14.2535796,169.04,169.03,5.9161]
[1721906030710,0.7835796,169.04,169.03,5.9161]
[1721906035446,14.2535796,169.04,169.03,5.9161]
[1721906036959,14.2535796,169.04,168.96,6.4637]
[1721906037125,14.2535796,169.04,169.03,5.9161]
[1721906037842,14.2535796,169.04,169.02,5.9161]
[1721906038048,14.08767068,169.03,169.0,5.9168]
[1721906038236,13.47,169.01,168.98,5.9176]
[1721906038445,13.47,168.99,168.98,5.9176]
[1721906038943,13.47,169.01,168.96,13.47]
[1721906039246,1.40125028,169.04,168.95,13.47]
[1721906039448,13.47,169.01,169.0,5.9171]
[1721906040759,13.47,169.01,168.96,5.9184]
[1721906040960,13.47,168.97,168.96,5.9184]
[1721906041839,13.47,168.98,168.97,5.9179]
[1721906047628,13.47,168.98,168.91,16.0471]
[1721906047950,13.47,168.95,168.9,13.47]
[1721906048150,0.61767068,168.97,168.95,5.9188]
[1721906048340,13.47,168.96,168.9,13.47]
[1721906048540,14.08767068,168.95,168.94,5.9192]
[1721906048753,13.47,168.95,168.94,5.9192]
[1721906049054,0.61767068,169.0,168.95,5.9186]
[1721906049055,13.47,168.96,168.95,5.9186]
[1721906049246,81.18767068,169.01,168.89,15.32308388]
[1721906049438,45.0,169.01,168.93,13.47]
[1721906049642,13.47,169.0,168.99,5.9175]
[1721906049835,16.3209,169.02,169.01,5.9168]
[1721906050038,1.40125028,169.04,168.96,13.47]
[1721906050447,13.47,169.02,169.01,5.9168]
[1721906053560,14.2535796,169.04,169.03,5.9161]
[1721906053732,0.7835796,169.04,169.03,5.9161]
[1721906054434,0.7835796,169.04,168.96,62.73332843]
[1721906054435,14.2535796,169.04,168.91,6.0132]
[1721906054638,13.47,169.0,168.99,5.9175]
[1721906054952,13.47,169.0,168.96,20.0]
[1721906054953,13.47,169.0,168.95,29.1433]
[1721906055151,13.47,169.01,169.0,5.917]
[1721906055646,13.47,169.01,168.98,5.9175]
[1721906055836,13.47,169.01,168.99,5.9173]
[1721906056031,13.47,169.01,169.0,5.9171]
[1721906056237,1.40125028,169.04,169.0,5.9171]
[1721906058366,1.40125028,169.04,168.92,8.8526013]
[1721906058568,1.40125028,169.04,168.93,20.0]
[1721906058938,0.7835796,169.04,169.02,5.9164]
[1721906059657,0.7835796,169.04,169.01,5.9167]
[1721906059854,0.61767068,169.03,169.01,5.9167]
[1721906060260,0.61767068,169.03,168.91,33.67537291]
[1721906060261,0.61767068,169.03,168.91,32.4918547]
[1721906060761,0.61767068,169.03,168.99,5.9174]
[1721906061459,45.61767068,169.03,168.99,5.9174]
[1721906061862,45.61767068,169.03,168.98,5.9177]
[1721906062748,45.61767068,169.03,168.99,5.9174]
[1721906062949,0.61767068,169.03,168.99,5.9174]
[1721906063848,0.61767068,169.03,168.98,5.9178]
[1721906067253,0.61767068,169.03,168.99,5.9173]
[1721906067746,0.61767068,169.03,168.98,5.9177]
[1721906068349,0.61767068,169.03,168.99,5.9174]
[1721906073469,0.61767068,169.03,168.99,5.9175]
[1721906075849,0.7835796,169.04,168.93,1.1836345]
[1721906076055,0.7835796,169.04,169.03,5.9161]
[1721906076588,0.7835796,169.04,169.03,19.3861]
[1721906081889,6.5015,169.14,169.1,5.9133]
[1721906082060,13.47,169.12,169.1,5.9133]
[1721906082862,16.37707068,169.13,169.1,5.9133]
[1721906083068,13.47,169.12,169.1,5.9133]
[1721906083765,13.47,169.12,169.09,5.9139]
[1721906084166,13.47,169.12,169.1,5.9136]
[1721906085668,13.47,169.11,169.1,5.9136]
[1721906088082,14.08767068,169.12,169.1,5.9136]
[1721906088260,13.47,169.11,169.1,5.9136]
[1721906088463,13.47,169.11,169.06,13.47]
[1721906089281,14.08767068,169.11,169.08,5.9143]
[1721906089662,13.47,169.11,169.09,5.9139]
[1721906091280,15.7594,169.13,169.09,5.9139]
[1721906091486,13.47,169.11,169.1,5.9136]
[1721906091676,5.9108,169.19,169.09,13.47]
[1721906091989,13.47,169.15,169.13,5.9125]
[1721906094285,13.47,169.14,169.13,5.9125]
[1721906095084,13.47,169.14,169.12,5.9128]
[1721906095585,13.47,169.14,169.07,16.2307]
[1721906097392,14.08767068,169.13,169.08,13.47]
[1721906097793,14.08767068,169.13,169.07,13.47]
[1721906098382,13.47,169.13,169.07,13.47]
[1721906099588,13.47,169.15,169.09,13.47]
[1721906099786,389.2,169.17,169.12,13.47]
[1721906100168,0.7835796,169.21,169.1,6.5017]
[1721906100374,0.7835796,169.21,169.18,13.47]
[1721906101076,0.61767068,169.2,169.16,13.47]
[1721906101282,14.08767068,169.2,169.15,13.47]
[1721906102086,13.47,169.18,169.11,20.0]
[1721906102297,14.08767068,169.17,169.12,13.47]
[1721906102689,14.08767068,169.17,169.09,13.47]
[1721906102690,13.47,169.14,169.09,13.47]
[1721906102886,0.61767068,169.13,169.09,13.47]
[1721906103196,14.08767068,169.13,169.08,13.47]
[1721906103373,14.08767068,169.13,169.07,30.067]
[1721906103570,14.08767068,169.13,169.07,15.91095235]
[1721906103895,13.47,169.13,169.07,15.91095235]
[1721906104091,13.47,169.13,169.07,13.47]
[1721906104390,0.61767068,169.12,169.03,15.7037]
[1721906104594,0.61767068,169.12,169.04,20.0]
[1721906105231,0.61767068,169.12,168.98,15.1007]
[1721906105374,410.8582,169.11,168.98,15.1007]
[1721906105580,45.61767068,169.1,168.98,17.52394348]
[1721906108377,45.61767068,169.1,168.98,15.1007]
[1721906109499,45.61767068,169.1,168.94,44.41336893]
[1721906109695,389.2,169.09,168.95,20.0]
[1721906109892,45.61767068,169.08,168.95,20.0]
[1721906110196,0.61767068,169.07,168.95,20.0]
[1721906113498,21.5257,169.06,168.91,1.03026209]
[1721906113682,0.61767068,169.05,168.91,1.03026209]
[1721906113877,0.61767068,169.04,168.91,1.03026209]
[1721906114799,0.61767068,169.04,168.91,3.43243301]
[1721906114981,0.61767068,169.04,168.91,23.43243301]
[1721906120610,0.61767068,169.04,168.91,23.33243301]
[1721906124304,36.18767068,169.04,168.91,23.33243301]
[1721906124506,45.0,169.03,168.91,23.33243301]
[1721906124692,0.61767068,169.02,168.91,23.33243301]
[1721906124900,0.61767068,169.01,168.91,23.33243301]
[1721906125895,15.4697,169.0,168.91,23.33243301]
[1721906126096,45.61767068,168.99,168.91,23.33243301]
[1721906126295,0.61767068,168.98,168.95,13.47]
[1721906127003,0.61767068,168.98,168.91,23.33243301]
[1721906127185,0.61767068,168.98,168.94,13.47]
[1721906127386,0.61767068,168.98,168.95,20.0]
[1721906127806,0.61767068,168.98,168.95,33.47]
[1721906128892,0.61767068,168.98,168.95,20.0]
[1721906129111,51.465,168.99,168.94,13.47]
[1721906129308,51.465,168.99,168.95,20.0]
[1721906129487,51.465,168.99,168.94,13.47]
[1721906129488,0.61767068,168.98,168.93,13.47]
[1721906129889,65.55267068,168.99,168.93,13.47]
[1721906130101,0.61767068,168.98,168.93,13.47]
[1721906130793,65.55267068,168.99,168.93,13.47]
[1721906131114,65.55267068,168.99,168.94,13.47]
[1721906131287,0.61767068,168.98,168.94,13.47]
[1721906132013,51.465,168.99,168.94,13.47]
[1721906133316,51.465,168.99,168.89,8.58780618]
[1721906133495,51.465,168.99,168.94,13.47]
[1721906133698,13.47,168.98,168.9,20.0]
[1721906133895,45.0,168.97,168.92,13.47]
[1721906134095,58.47,168.97,168.92,13.47]
[1721906134813,45.0,168.97,168.92,13.47]
[1721906136210,45.0,168.97,168.89,2.42290401]
[1721906136211,45.0,168.97,168.93,13.47]
[1721906136408,45.0,168.97,168.86,16.4383233]
[1721906136615,45.0,168.97,168.93,13.47]
[1721906137429,45.0,168.98,168.93,13.47]
[1721906138896,58.47,168.98,168.93,13.47]
[1721906141131,13.47,168.94,168.88,13.47]
[1721906141436,45.61767068,168.93,168.88,13.47]
[1721906141727,0.61767068,168.92,168.88,13.47]
[1721906141903,45.0,168.93,168.89,13.47]
[1721906141904,45.61767068,168.93,168.89,13.47]
[1721906142214,45.0,168.93,168.89,13.47]
[1721906142415,13.47,168.96,168.91,13.47]
[1721906142628,389.2,168.97,168.94,13.47]
[1721906142810,389.2,168.97,168.96,13.47]
[1721906143121,6.465,168.99,168.96,13.47]
[1721906143524,6.465,168.99,168.88,53.88]
[1721906143817,6.465,168.99,168.94,13.47]
[1721906144021,6.465,168.99,168.89,20.0]
[1721906144206,6.465,168.99,168.94,13.47]
[1721906144406,6.465,168.99,168.95,13.47]
[1721906145428,6.465,168.99,168.94,13.47]
[1721906145924,6.465,168.99,168.95,13.47]
[1721906146501,6.465,168.99,168.88,55.06382435]
[1721906146702,6.465,168.99,168.95,13.47]
[1721906147222,15.4697,169.0,168.96,13.47]
[1721906148628,28.9397,169.0,168.95,13.47]
[1721906149128,15.4697,169.0,168.95,13.47]
[1721906149328,6.2719,169.03,168.98,13.47]
[1721906149532,6.2719,169.03,168.99,13.47]
[1721906149838,404.8888,169.04,169.02,13.47]
[1721906150130,6.2672,169.08,169.03,13.47]
[1721906151034,29.1588,169.1,169.05,13.47]
[1721906152030,15.6888,169.1,169.05,13.47]
[1721906152342,6.651,169.13,169.07,13.47]
[1721906152517,20.73867068,169.13,169.07,13.47]
[1721906152820,20.73867068,169.13,169.08,13.47]
[1721906153016,20.73867068,169.13,169.09,13.47]
[1721906153017,7.26867068,169.13,169.09,13.47]
[1721906153330,29.672,169.14,169.08,13.47]
[1721906153331,16.202,169.14,169.08,13.47]
[1721906153536,16.202,169.14,169.1,13.47]
[1721906153827,30.28967068,169.14,169.09,13.47]
[1721906154008,30.28967068,169.14,169.04,13.47]
[1721906154009,30.28967068,169.14,169.04,53.88]
[1721906154213,30.28967068,169.14,169.05,20.0]
[1721906156023,30.28967068,169.14,169.08,13.47]
[1721906156226,13.47,169.11,169.05,33.47]
[1721906156436,14.08767068,169.1,169.05,20.0]
[1721906156739,13.47,169.08,169.03,13.47]
[1721906156911,0.61767068,169.07,169.03,13.47]
[1721906157414,14.08767068,169.07,169.02,13.47]
[1721906157943,13.47,169.07,169.03,20.0]
[1721906158446,0.61767068,169.11,169.03,20.0]
[1721906158613,0.61767068,169.11,168.98,21.18322667]
[1721906158811,0.61767068,169.11,168.99,1.18320677]
[1721906159241,0.61767068,169.1,168.97,44.8347187]
[1721906159445,6.0338,169.09,168.97,44.8347187]
[1721906159616,45.61767068,169.08,168.97,44.8347187]
[1721906159923,0.61767068,169.07,168.97,17.9147187]